fUSD/lending_fUSD_20241106
["ID","MTS","AMOUNT","RATE_DAILY","PERIOD"]
[341451856,1730897443911,-3500.62602924,0.00036589,7]
[341451857,1730897443920,-500.0,0.00036589,7]
[341451858,1730897443929,-445.01383278,0.00036589,7]
[341451859,1730897443946,-665.44586404,0.00036589,7]
[341451860,1730897443968,-28.6889707,0.00036589,7]
[341451861,1730897443979,-624.09133248,0.00036589,7]
[341451862,1730897443989,-188.68874875,0.00036589,7]
[341451898,1730897446075,-1723.17125125,0.00036589,7]
[341451899,1730897446085,-500.0,0.00036589,7]
[341451900,1730897446094,-13.00783662,0.00036589,7]
[341451901,1730897446238,-268.96,0.00036589,7]
[341451902,1730897446349,-283.93447517,0.00036589,7]
[341451903,1730897446421,-401.23025247,0.00036589,7]
[341451904,1730897446489,-69.20114618,0.00036589,7]
[341451993,1730897535756,159.01,0.00015342,2]
[341451994,1730897535977,159.01,0.00027507,2]
[341451995,1730897539329,175.326,0.00022213,2]
[341451997,1730897546410,218.373,0.0003,2]
[341451998,1730897557495,150.0,0.00018123,2]
[341451999,1730897649431,-165.031,0.00022255,2]
[341452000,1730897649460,-2029.0,0.000271,2]
[341452006,1730898004282,245.2185672,0.0001726,2]
[341452008,1730898026456,156.73,0.00015342,2]
[341452011,1730898249851,340.36673282,0.00017174,2]
[341452013,1730898338138,-250.0,0.00021,2]
[341452014,1730898338158,-149.75634639,0.00021918,2]
[341452015,1730898435095,-300.0,0.00023,2]
[341452016,1730898435117,-350.0,0.00025,2]
[341452017,1730898435138,-400.0,0.00027,2]
[341452018,1730898435158,-150.0,0.000271,2]
[341452019,1730898435178,-150.0,0.000271,2]
[341452020,1730898435198,-150.0,0.000271,2]
[341452021,1730898435219,-48.41734061,0.000271,2]
[341452022,1730898447118,-101.58265939,0.000271,2]
[341452023,1730898447139,-150.0,0.000271,2]
[341452024,1730898447159,-31.84429636,0.000271,2]
[341452025,1730898491235,150.0,0.00018123,2]
[341452026,1730898542897,300.0,0.00019725,2]
[341452027,1730898550114,-300.0,0.00021484,2]
[341452028,1730898550137,-118.15570364,0.000271,2]
[341452029,1730898550160,-150.0,0.000271,2]
[341452030,1730898550180,-150.0,0.000271,2]
[341452031,1730898550200,-150.0,0.000271,2]
[341452032,1730898550220,-150.0,0.000271,2]
[341452033,1730898550240,-150.0,0.000271,2]
[341452034,1730898550259,-150.0,0.000271,2]
[341452035,1730898550281,-150.0,0.000271,2]
[341452036,1730898550301,-150.0,0.000271,2]
[341452037,1730898550321,-150.0,0.000271,2]
[341452038,1730898550342,-1826.0,0.000271,2]
[341452039,1730898550362,-511.49260512,0.000271,2]
[341452040,1730898550383,-1000.0,0.0003,2]
[341452041,1730898550405,-500.0,0.0003,2]
[341452042,1730898550425,-3000.0,0.0003,7]
[341452043,1730898550447,-917.26,0.00031449,2]
[341452044,1730898550470,-914.41446,0.00032563,2]
[341452045,1730898550492,-1208.25,0.00032727,2]
[341452046,1730898550534,-1208.25,0.00033253,2]
[341452047,1730898550556,-3379.59,0.00033253,10]
[341452048,1730898550581,-150.99,0.00033253,2]
[341452049,1730898550601,-1112.05,0.00033253,2]
[341452050,1730898550621,-355.14,0.00033294,2]
[341452051,1730898550642,-548.83,0.00033376,2]
[341452052,1730898550664,-640.0,0.00033378,2]
[341452053,1730898550967,-200.0,0.00033453,2]
[341452054,1730898550988,-250.0,0.00033519,120]
[341452055,1730898551009,-13087.48,0.00033544,2]
[341452056,1730898551029,-262.93,0.00033572,120]
[341452057,1730898551048,-910.69,0.00033621,2]
[341452058,1730898551070,-154.63,0.00033683,2]
[341452059,1730898551097,-917.26,0.00033713,2]
[341452060,1730898551118,-255.46,0.00033774,2]
[341452061,1730898551138,-1208.25,0.00033778,2]
[341452062,1730898551161,-250.0,0.00033899,2]
[341452063,1730898551182,-200.0,0.000342,2]
[341452064,1730898551201,-1320.626367,0.00034225,2]
[341452065,1730898551222,-1208.25,0.00034304,2]
[341452066,1730898551244,-2818.51,0.00034334,2]
[341452067,1730898556552,-167.0,0.00034491,2]
[341452068,1730898556573,-200.0,0.00034491,7]
[341452070,1730898579293,161.28,0.00015342,2]
[341452071,1730898607249,250.0,0.00034477,2]
[341452072,1730898613272,151.0,0.0003,120]
[341452073,1730898623179,204.29241758,0.00023,2]
[341452084,1730898632408,-165.7,0.0003454,120]
[341452085,1730898632418,-259.66,0.0003458,2]
[341452086,1730898632428,-360.0,0.00034696,2]
[341452087,1730898632438,-1208.25,0.0003483,2]
[341452088,1730898632447,-558.0,0.00034985,2]
[341452089,1730898632457,-1984.946,0.00034985,2]
[341452090,1730898632466,-2907.0,0.00034985,2]
[341452091,1730898632476,-813.0,0.00034985,2]
[341452092,1730898632485,-1257.0,0.00034985,2]
[341452093,1730898632496,-920.0,0.00034985,2]
[341452094,1730898632505,-230.27,0.0003499,10]
[341452095,1730898632515,-500.0,0.00034999,7]
[341452096,1730898632525,-406.51120962,0.00034999,7]
[341452097,1730898632535,-159.59045432,0.00034999,7]
[341452098,1730898632544,-25392.57233606,0.00035,2]
[341452147,1730898638266,-5466.86691761,0.00035,2]
[341452148,1730898638664,-37616.033428,0.00035,2]
[341452149,1730898638675,-325.0840009,0.00035,2]
[341452150,1730898638719,-1640.44331743,0.00035,2]
[341452151,1730898638729,-1000.0,0.00035,2]
[341452152,1730898638738,-23510.92580083,0.00035,2]
[341452153,1730898638769,-1998.73043976,0.00035,2]
[341452296,1730898640240,-172.04637118,0.00035,2]
[341452305,1730898640330,-5952.7800514,0.00035,2]
[341452312,1730898640390,-662.35622565,0.00035,2]
[341452322,1730898640485,-1149.99995,0.00035,2]
[341452606,1730898643378,-1034.715,0.00035,2]
[341452615,1730898643449,-1.31012005,0.00035,2]
[341452620,1730898643491,-10499.26138081,0.00035,2]
[341452622,1730898643503,-5017.87466032,0.00035,2]
[341452624,1730898643512,-3688.63456132,0.00035008,15]
[341452626,1730898643521,-176.08,0.00035108,120]
[341452628,1730898643530,-1828.15494207,0.00035329,15]
[341452630,1730898643541,-442.28846318,0.00035329,15]
[341452633,1730898643552,-818.205011,0.00035329,15]
[341452892,1730898646235,-599.98614504,0.00035329,15]
[341452894,1730898646245,-144.08385496,0.00035356,2]
[341452896,1730898646257,-1064.16614504,0.00035356,2]
[341452899,1730898646266,-683.73463751,0.000354,2]
[341452901,1730898646276,-568.473,0.00035452,42]
[341452903,1730898646286,-200.44,0.0003549,2]
[341452905,1730898646296,-200.44,0.0003549,2]
[341452907,1730898646306,-32182.74623248,0.000355,4]
[341452915,1730898646381,-17915.25376752,0.000355,4]
[341452917,1730898646392,-30363.83086777,0.000355,3]
[341452955,1730898646755,-14696.7838,0.000355,3]
[341452957,1730898646770,-4939.38533223,0.000355,3]
[341452959,1730898646779,-9656.22773722,0.000355,5]
[341453250,1730898666636,500.0,0.00021918,30]
[341453251,1730898667084,500.0,0.00021918,30]
[341453252,1730898667657,500.0,0.00021918,30]
[341453253,1730898667970,500.0,0.00021918,30]
[341453254,1730898668467,500.0,0.00021918,30]
[341453255,1730898668935,500.0,0.00021918,30]
[341453256,1730898669389,500.0,0.00021918,30]
[341453257,1730898670189,500.0,0.00021918,30]
[341453258,1730898670472,500.0,0.00021918,30]
[341453259,1730898670964,500.0,0.00021918,30]
[341453260,1730898671406,241.78350104,0.00021918,30]
[341453261,1730898703219,153.84,0.00033055,2]
[341453263,1730898816650,19036.33908718,0.0002,2]
[341453264,1730899155698,162.67,0.00015342,2]
[341453267,1730899508821,2604611.63091463,0.00016,2]
[341453268,1730899526194,976.80282612,0.000108,2]
[341453269,1730899530529,18693.9040349,0.000101,2]
[341453270,1730899532624,1179.45513801,0.000153,2]
[341453271,1730899537128,-1129.66297,0.00021918,2]
[341453272,1730899537150,-500.0,0.00024932,2]
[341453273,1730899537174,-820.69596676,0.00025,2]
[341453274,1730899558252,269.03275379,0.00014,2]
[341453279,1730899642075,205.0,9.8e-05,2]
[341453280,1730899643936,252.05565081,0.0002,5]
[341453281,1730899649123,-427.28544327,0.00022,2]
[341453282,1730899653134,-215.05180473,0.00022,2]
[341453283,1730899653156,-626.43524688,0.00024,2]
[341453284,1730899653176,-3993.52675491,0.00025,2]
[341453286,1730899683298,2100.0,0.0001,2]
[341453287,1730899686254,519622.72665441,0.00015,2]
[341453289,1730899701131,6119.01874597,0.0001439,2]
[341453291,1730899704517,600.0,0.000135,2]
[341453292,1730899708884,41457.03891789,0.0002,2]
[341453293,1730899716360,304.088039,0.000129,2]
[341453294,1730899725472,1698.00987408,0.0001,2]
[341453295,1730899728169,450.10618486,0.00013,2]
[341453308,1730899746108,-16812.38932336,0.00021,10]
[341453309,1730899746132,-2584.80653664,0.00025,2]
[341453310,1730899746173,-7445.51466494,0.00025,2]
[341453311,1730899746200,-1129.66297,0.00026918,2]
[341453312,1730899746228,-589.19958584,0.00029,2]
[341453313,1730899746258,-294.54025,0.0003,2]
[341453314,1730899746280,-274.3446133,0.0003,30]
[341453315,1730899746305,-1129.66298,0.00031918,2]
[341453316,1730899746333,-1220.16,0.00031918,2]
[341453317,1730899746359,-1529.8,0.00031918,2]
[341453318,1730899746385,-294.54025,0.00032038,2]
[341453319,1730899746409,-911.14,0.00032133,2]
[341453320,1730899746434,-153.84,0.00032348,2]
[341453321,1730899746462,-2485.21,0.00032348,2]
[341453322,1730899746487,-160.66072956,0.00032877,2]
[341453323,1730899746514,-645.58,0.00033251,2]
[341453324,1730899746540,-250.0,0.00033495,2]
[341453325,1730899746569,-250.0,0.00033578,2]
[341453326,1730899746598,-368.0,0.00033697,120]
[341453327,1730899746623,-434.93,0.00033736,2]
[341453328,1730899746649,-645.58,0.00033785,2]
[341453329,1730899746676,-250.0,0.00034038,120]
[341453330,1730899746700,-200.0,0.00034089,7]
[341453331,1730899746724,-903.32843612,0.00034117,2]
[341453332,1730899748194,4264.18008637,0.0003,2]
[341453333,1730899749957,250.0,0.00021,2]
[341453334,1730899751021,300.0,0.00023,2]
[341453335,1730899752101,350.0,0.00025,2]
[341453336,1730899752133,-200.0,0.000342,2]
[341453337,1730899752155,-289.43,0.00034213,2]
[341453338,1730899752177,-182.06,0.00034268,2]
[341453339,1730899752200,-645.58,0.00034319,2]
[341453340,1730899752220,-158.142,0.00034319,2]
[341453341,1730899752240,-158.142,0.00034319,2]
[341453342,1730899752261,-158.142,0.00034319,2]
[341453343,1730899752282,-158.142,0.00034319,2]
[341453344,1730899752303,-158.142,0.00034319,2]
[341453345,1730899752324,-158.142,0.00034319,2]
[341453346,1730899752349,-158.142,0.00034319,2]
[341453347,1730899752368,-158.142,0.00034319,2]
[341453348,1730899752387,-158.142,0.00034319,2]
[341453349,1730899752408,-911.14,0.00034396,2]
[341453350,1730899752432,-203.504344,0.000344,2]
[341453351,1730899752453,-1000.0,0.00034407,2]
[341453352,1730899752474,-662.77,0.00034407,2]
[341453353,1730899753208,400.0,0.00027,2]
[341453361,1730899774276,153.84,0.00032831,2]
[341453362,1730899782788,8196.59296585,0.00024,60]
[341453363,1730899782808,927.40703415,0.00024,60]
[341453364,1730899791145,820.02,0.00032622,2]
[341453365,1730899819946,403.48,0.00033711,2]
[341453366,1730899820059,403.48,0.00034252,2]
[341453378,1730899832576,-250.0,0.00034487,120]
[341453379,1730899832585,-200.0,0.0003454,7]
[341453380,1730899832595,-210.2,0.00034599,120]
[341453381,1730899832604,-403.48,0.00034794,2]
[341453382,1730899832616,-189.28,0.00034847,120]
[341453383,1730899832625,-172.49,0.00034886,2]
[341453384,1730899832635,-3622.66,0.00034886,2]
[341453385,1730899832646,-820.02,0.00034886,2]
[341453386,1730899832656,-4500.0,0.00035,30]
[341453387,1730899832665,-3216.81546888,0.00035,2]
[341453388,1730899832674,-200.0,0.00035,7]
[341453389,1730899832683,-1021.20615123,0.00035,30]
[341453390,1730899832693,-350.62772462,0.00035,2]
[341453391,1730899832704,-423.97700768,0.00035126,2]
[341453392,1730899832715,-1129.66297,0.0003532,2]
[341453393,1730899832725,-403.48,0.00035335,2]
[341453394,1730899832736,-486.372,0.00035452,42]
[341453395,1730899832746,-300.04,0.0003549,2]
[341453396,1730899832756,-300.04,0.0003549,2]
[341453397,1730899832765,-300.04,0.0003549,2]
[341453398,1730899832774,-300.04,0.0003549,2]
[341453399,1730899832783,-300.04,0.00035496,2]
[341453401,1730899832792,-17851.02867759,0.000355,5]
[341453402,1730899832806,-785.35099961,0.000355,5]
[341453403,1730899832818,-742.2,0.000355,5]
[341453404,1730899832830,-7797.10304481,0.000355,5]
[341453407,1730899832842,-3013.27291082,0.000355,5]
[341453409,1730899832858,-1013.38219973,0.000355,5]
[341453411,1730899832869,-8949.50797892,0.000355,5]
[341453413,1730899832880,-909.3594811,0.000355,5]
[341453415,1730899832897,-3820.84714143,0.000355,5]
[341453418,1730899832916,-9335.210069,0.000355,5]
[341453420,1730899832927,-300.0,0.000355,5]
[341453422,1730899832937,-603.66404417,0.000355,5]
[341453424,1730899832948,-3487.72454368,0.000355,5]
[341453426,1730899832959,-7876.36915987,0.000355,5]
[341453428,1730899832969,-326.9875,0.000355,5]
[341453432,1730899832998,-404.0,0.000355,5]
[341453434,1730899833008,-523.32573715,0.000355,5]
[341453445,1730899838387,-3674.80312281,0.00035496,15]
[341453446,1730899838398,-12981.8501374,0.000355,5]
[341453447,1730899838408,-5244.2,0.00035506,2]
[341453448,1730899838418,-1275.21,0.00035506,2]
[341453449,1730899838427,-1000.0,0.00035506,2]
[341453450,1730899838437,-681.50525401,0.00035506,2]
[341453451,1730899838449,-318.49474599,0.00035506,2]
[341453452,1730899838458,-315.43125943,0.00035506,2]
[341453453,1730899838468,-300.04,0.00035586,2]
[341453454,1730899838477,-300.04,0.00035586,2]
[341453455,1730899838487,-300.04,0.00035586,2]
[341453456,1730899838496,-300.04,0.00035586,2]
[341453457,1730899838507,-300.04,0.00035586,2]
[341453458,1730899838517,-500.0,0.00035595,7]
[341453459,1730899838526,-500.0,0.00035595,7]
[341453460,1730899838536,-500.0,0.00035595,7]
[341453461,1730899838545,-500.0,0.00035595,7]
[341453462,1730899838555,-500.0,0.00035595,7]
[341453463,1730899838565,-500.0,0.00035595,7]
[341453464,1730899838574,-424.98349481,0.00035595,7]
[341453465,1730899838584,-500.0,0.00035595,7]
[341453466,1730899838594,-500.0,0.00035595,7]
[341453467,1730899838603,-500.0,0.00035595,7]
[341453468,1730899838613,-500.0,0.00035595,7]
[341453469,1730899838623,-379.34815612,0.00035595,7]
[341453470,1730899838632,-500.0,0.00035595,7]
[341453471,1730899838642,-500.0,0.00035595,7]
[341453472,1730899838652,-500.0,0.00035595,7]
[341453473,1730899838661,-500.0,0.00035595,7]
[341453474,1730899838671,-500.0,0.00035595,7]
[341453475,1730899838681,-319.74100394,0.00035595,7]
[341453476,1730899838691,-500.0,0.00035595,7]
[341453477,1730899838701,-11678.69110511,0.00035596,2]
[341453478,1730899838711,-219.45006094,0.00035596,2]
[341453479,1730899838720,-90897.2839442,0.00035596,2]
[341453480,1730899838729,-150.34,0.00035596,2]
[341453481,1730899838739,-150.34,0.00035596,2]
[341453482,1730899838748,-150.34,0.00035596,2]
[341453483,1730899838757,-150.34,0.00035596,2]
[341453484,1730899838767,-260.92,0.000356,60]
[341453485,1730899838776,-500.0,0.00035605,7]
[341453486,1730899838786,-430.91693115,0.00035605,7]
[341453487,1730899838796,-500.0,0.00035605,7]
[341453488,1730899838806,-73742.38894805,0.00035606,2]
[341453489,1730899838851,-646.18998075,0.00035606,2]
[341453490,1730899838869,-296.77858876,0.00035606,2]
[341453491,1730899838880,-36643.04497276,0.00035606,2]
[341453492,1730899838892,-14803.8,0.00035606,2]
[341453493,1730899838903,-1021.94923805,0.00035606,2]
[341453494,1730899838915,-1618.53007049,0.00035606,2]
[341453495,1730899838950,-1118.94582766,0.00035606,2]
[341453496,1730899838970,-521.6,0.00035606,2]
[341453606,1730899842035,-1914.73751216,0.00035606,2]
[341453635,1730899843468,-406.466557,0.00035606,2]
[341453636,1730899843584,-18188.92596529,0.00035606,2]
[341453637,1730899843850,-272.26210416,0.00035606,2]
[341453638,1730899843870,-11128.54571998,0.00035606,2]
[341453639,1730899843890,-3222.23827759,0.00035606,2]
[341453640,1730899843902,-1480.47090746,0.00035606,2]
[341453744,1730899846433,-5116.17239675,0.00035596,2]
[341453745,1730899846442,-2284.76668167,0.00035606,2]
[341453823,1730900103191,929.0,0.000165,10]
[341453824,1730900108627,177.834,0.00018509,2]
[341453825,1730900240946,-797.0,0.00043209,30]
[341453826,1730900240968,-196.0,0.00043209,30]
[341453827,1730900240991,-196.0,0.00043209,30]
[341453828,1730900241014,-167.0,0.00043209,30]
[341453829,1730900241036,-3000.0,0.00043209,120]
[341453830,1730900241062,-50000.0,0.00043209,33]
[341453831,1730900241086,-50000.0,0.00043209,34]
[341453832,1730900241110,-50000.0,0.00043209,35]
[341453833,1730900241135,-50000.0,0.00043209,36]
[341453834,1730900241159,-931.61930486,0.00043209,30]
[341453835,1730900241182,-259.99629868,0.00043209,30]
[341453836,1730900241208,-1015.0,0.00043209,30]
[341453837,1730900241233,-400.0,0.00043209,120]
[341453838,1730900241257,-50139.14887189,0.00043209,90]
[341453839,1730900241283,-1000.0,0.00043209,30]
[341453840,1730900241306,-415.0,0.00043209,30]
[341453841,1730900241329,-5000.0,0.00043209,30]
[341453842,1730900241351,-5000.0,0.00043209,60]
[341453843,1730900241374,-10939.50521708,0.00043209,90]
[341453844,1730900241397,-2086.96,0.00043209,30]
[341453845,1730900241418,-9986.7500242,0.00043209,30]
[341453846,1730900241442,-6573.0,0.00043209,30]
[341453847,1730900241465,-157.805277,0.00043209,40]
[341453848,1730900242057,2632.51,0.00043209,33]
[341453849,1730900282030,300.0,0.00019725,2]
[341453851,1730900387868,159.19,0.00015342,2]
[341453852,1730900466155,-500.0,0.00024932,2]
[341453853,1730900466179,-874.0,0.000257,2]
[341453854,1730900466203,-1875.0,0.000257,2]
[341453855,1730900466227,-160.37,0.00027292,2]
[341453857,1730900831126,-159.19,0.00028858,2]
[341453858,1730900831152,-36.9138437,0.0003,2]
[341453859,1730900849518,-511.1869063,0.0003,2]
[341453860,1730900849538,-548.10075,0.0003,2]
[341453861,1730900849561,-471.89609265,0.00031,30]
[341453862,1730900850091,-28.10390735,0.00031,30]
[341453863,1730900850112,-830.35,0.00032306,2]
[341453864,1730900850131,-434.937297,0.00032712,2]
[341453865,1730900850151,-167.00724587,0.00032877,2]
[341453866,1730900850171,-1453.39941078,0.00032877,2]
[341453867,1730900875990,156.73,0.00015342,2]
[341453869,1730900945104,-202.80124036,0.00023,2]
[341453870,1730900945126,-885.75,0.00032145,2]
[341453871,1730900945147,-467.93058922,0.00032877,2]
[341453872,1730900945169,-254.69,0.00033026,2]
[341453873,1730900964624,-254.69,0.00033557,2]
[341453874,1730900964647,-182.06,0.00033631,2]
[341453875,1730900964670,-217.46,0.00033686,2]
[341453876,1730900964692,-1000.0,0.00033852,2]
[341453877,1730900964712,-534.85,0.00033859,2]
[341453878,1730900964733,-200.0,0.00033914,7]
[341453879,1730900964756,-349.6,0.00033934,120]
[341453880,1730900964775,-150.99,0.00033934,2]
[341453881,1730900964795,-250.0,0.00033967,120]
[341453882,1730900964815,-250.0,0.00034038,2]
[341453883,1730900964835,-20389.94,0.00034038,2]
[341453884,1730900964855,-254.69,0.00034088,2]
[341453885,1730900964875,-160.15,0.00034106,2]
[341453886,1730900969138,-885.75,0.00034409,2]
[341453887,1730900970683,500.0,0.000344,120]
[341453888,1730900973706,150.057,0.0003,2]
[341453889,1730900992724,7683.63656437,0.0002,2]
[341453890,1730900992744,1444.89960992,0.0002,2]
[341453891,1730901019491,250.2749,0.00033834,30]
[341453903,1730901031699,-150.0,0.00034548,10]
[341453904,1730901031709,-488.38,0.00034586,2]
[341453905,1730901031719,-2529.84,0.00034595,120]
[341453906,1730901031728,-254.69,0.00034618,2]
[341453907,1730901031738,-189.28,0.00034662,120]
[341453908,1730901031747,-500.0,0.000348,120]
[341453909,1730901031756,-165.7,0.00034831,120]
[341453910,1730901031766,-254.69,0.00035149,2]
[341453911,1730901031775,-500.0,0.000354,120]
[341453912,1730901031784,-3082.8329,0.00035406,7]
[341453913,1730901031794,-4000.0,0.00035432,3]
[341453914,1730901031807,-3791.43106983,0.00035496,15]
[341453915,1730901031816,-315.43125942,0.00035496,2]
[341453916,1730901031826,-1637.6858,0.00035506,2]
[341453917,1730901031835,-898.4111,0.00035506,2]
[341453918,1730901031845,-1055.0321,0.00035506,2]
[341453919,1730901031855,-8321.2333,0.00035506,2]
[341453920,1730901031864,-172.53905098,0.00035516,2]
[341453921,1730901031873,-500.0,0.00035573,2]
[341453922,1730901031883,-89589.8581423,0.00035586,2]
[341453923,1730901031893,-897.62,0.00035586,3]
[341453924,1730901031903,-500.0,0.00035595,7]
[341453925,1730901031912,-501.6418518,0.00035595,7]
[341453926,1730901031921,-286.56491854,0.00035595,7]
[341453927,1730901031931,-500.0,0.00035595,7]
[341453928,1730901031940,-257.74900044,0.00035595,7]
[341453929,1730901031949,-855.56002735,0.00035596,2]
[341453930,1730901031959,-72273.26594949,0.00035596,2]
[341453934,1730901032010,-388.99374477,0.00035596,2]
[341453948,1730901037896,-500.0,0.00035595,7]
[341453949,1730901037905,-201.14929626,0.00035595,7]
[341453950,1730901037915,-1628.54102162,0.00035596,2]
[341453951,1730901037944,-228232.6624053,0.00035596,2]
[341453952,1730901038067,-2057.49691761,0.00035596,2]
[341453953,1730901038080,-37616.033428,0.00035596,2]
[341453954,1730901038156,-739.0,0.00035596,2]
[341453956,1730901038263,-7888.25829219,0.00035596,2]
[341453962,1730901039702,-824.9586292,0.00035596,2]
[341453963,1730901039714,-51505.15125182,0.00035596,2]
[341453964,1730901039724,-4804.4269969,0.00035596,2]
[341453965,1730901039760,-7453.50000027,0.00035596,2]
[341453966,1730901040014,-170.13152766,0.00035596,2]
[341453967,1730901040038,-500.0,0.00035595,7]
[341453969,1730901040047,-250.0,0.00035595,7]
[341453971,1730901040059,-6775.18922931,0.00035596,2]
[341453978,1730901044135,-500.0,0.00035595,7]
[341453979,1730901044144,-500.0,0.00035595,7]
[341453980,1730901044153,-241.69999999,0.00035595,7]
[341453981,1730901044170,-258.30000001,0.00035595,7]
[341453982,1730901044180,-2821.32622565,0.00035596,2]
[341454136,1730901045871,-1479.13834,0.00035596,2]
[341454138,1730901045882,-25998.29933206,0.00035596,2]
[341454140,1730901045891,-17355.92658687,0.00035596,2]
[341454648,1730901122265,1765.1,0.00033955,2]
[341454649,1730901125184,172.16025,0.0003,2]
[341454650,1730901137267,500.0,0.00031,30]
[341454651,1730901137712,500.0,0.000307,30]
[341454652,1730901141074,155.122,0.0003,2]
[341454653,1730901144787,500.0,0.00031,30]
[341454654,1730901150235,500.0,0.00031,30]
[341454659,1730901374417,160.05,0.00015342,2]
[341454661,1730901946384,162.67,0.00015342,2]
[341454663,1730902033136,-250.0,0.00021,2]
[341454664,1730902033156,-300.0,0.00023,2]
[341454665,1730902033177,-350.0,0.00025,2]
[341454666,1730902033196,-1964.0,0.000259,2]
[341454667,1730902033215,-161.05,0.00026373,2]
[341454668,1730902033236,-6956.98392426,0.00026373,2]
[341454669,1730902037102,-3742.10989983,0.00026373,2]
[341454670,1730902049089,-188.9471029,0.00026373,2]
[341454671,1730902118648,150.0,0.000202,2]
[341454672,1730902148096,-1768.0,0.000259,2]
[341454673,1730902148119,-400.0,0.00027,2]
[341454674,1730902148144,-150.99,0.00027,2]
[341454675,1730902148164,-2718.61,0.00027,2]
[341454676,1730902148186,-450.0,0.00029,2]
[341454677,1730902148208,-12679.85692055,0.00029,2]
[341454678,1730902148229,-151.0,0.0003,120]
[341454679,1730902148250,-500.0,0.00031,2]
[341454680,1730902148271,-883.08,0.00031313,2]
[341454681,1730902148292,-171.96,0.00031427,2]
[341454682,1730902148313,-1997.55,0.00032417,2]
[341454683,1730902148334,-1997.55,0.00032937,2]
[341454684,1730902148355,-1228.68,0.00032955,2]
[341454685,1730902148381,-484.93,0.0003296,2]
[341454686,1730902148403,-250.0,0.00032966,120]
[341454687,1730902148426,-985.29,0.00032967,2]
[341454688,1730902148447,-500.0,0.00032973,2]
[341454689,1730902148467,-500.0,0.00032981,2]
[341454690,1730902148487,-653.02,0.00032983,2]
[341454691,1730902148509,-165.7,0.00033051,120]
[341454692,1730902148529,-708.99,0.00033054,2]
[341454693,1730902148549,-150.0,0.00033073,2]
[341454694,1730902148570,-3198.56,0.000331,2]
[341454695,1730902157116,-1068.66,0.00033128,2]
[341454696,1730902157139,-250.0,0.00033148,2]
[341454697,1730902157160,-1244.84,0.00033174,2]
[341454698,1730902157182,-800.0,0.00033193,2]
[341454699,1730902157203,-434.51,0.00033254,120]
[341454700,1730902157225,-361.92,0.00033262,120]
[341454701,1730902157246,-200.0,0.00033338,7]
[341454702,1730902157267,-1997.55,0.00033458,2]
[341454703,1730902157288,-883.08,0.00033577,2]
[341454704,1730902157308,-200.0,0.0003377,2]
[341454705,1730902157330,-1997.55,0.00033979,2]
[341454706,1730902157352,-159.02,0.00034103,2]
[341454707,1730902157372,-159.02,0.00034134,2]
[341454708,1730902157394,-168.01,0.00034158,2]
[341454709,1730902157417,-159.02,0.00034165,2]
[341454710,1730902157438,-159.02,0.00034196,2]
[341454711,1730902157460,-159.02,0.00034227,2]
[341454712,1730902157482,-159.02,0.00034258,2]
[341454713,1730902157503,-159.02,0.00034289,2]
[341454714,1730902157524,-159.02,0.0003432,2]